fUST/lending_fUST_20240824
["ID","MTS","AMOUNT","RATE_DAILY","PERIOD"]
[335808131,1724499047117,-661.51,0.00013698,2]
[335808132,1724499047126,-500.0,0.00013698,2]
[335808133,1724499047136,-500.0,0.00013698,2]
[335808134,1724499047145,-500.56863178,0.00013698,2]
[335808135,1724499047154,-988.57,0.00013698,2]
[335808136,1724499047164,-500.0,0.00013698,2]
[335808137,1724499047173,-943.75,0.00013698,2]
[335808138,1724499047183,-500.0,0.00013698,2]
[335808139,1724499047192,-2885.44,0.00013698,2]
[335808140,1724499047206,-2305.38,0.00013698,2]
[335808141,1724499047216,-500.0,0.00013698,2]
[335808142,1724499047229,-379.13820385,0.00013698,2]
[335808143,1724499057612,245.39678061,0.00012551,2]
[335808144,1724499058750,7294.21033384,0.00012551,2]
[335808145,1724499058772,2217.14844347,0.00012551,2]
[335808146,1724499058793,9996.87643044,0.00012551,2]
[335808147,1724499061967,939.08236877,0.00012551,2]
[335808149,1724499068909,2112.50283852,0.00012551,2]
[335808152,1724499072255,405.40975806,0.00012551,2]
[335808158,1724499093435,273.37336231,0.00012111,2]
[335808160,1724499109683,273.37336231,0.00012111,2]
[335808191,1724499183039,16391.45175369,0.00012111,2]
[335808193,1724499186329,3049.73924956,0.00012111,2]
[335808204,1724499275040,3574.50114123,0.00012111,2]
[335808205,1724499275627,226.78719103,0.00012111,2]
[335808206,1724499291966,3619.64686258,0.00012111,2]
[335808209,1724499327774,2515.78122782,0.00012111,2]
[335808212,1724499454625,5000.0,0.00027,120]
[335808213,1724499623313,347.72469768,0.000166,30]
[335808214,1724499663128,1640.24017386,0.00012111,2]
[335808215,1724499786666,245.30609513,0.00012111,2]
[335808216,1724499790474,155.37252349,0.00012111,2]
[335808217,1724499791699,218.70409946,0.00012111,2]
[335808218,1724499806086,16323.37799786,0.00012111,2]
[335808219,1724499809018,1043.44440635,0.00012111,2]
[335808220,1724499811491,3312.84647178,0.00012111,2]
[335808221,1724499817383,4722.19913161,0.00012111,2]
[335808222,1724499818964,2112.29265619,0.00012111,2]
[335808223,1724499822318,405.39053387,0.00012111,2]
[335808224,1724499869746,364.10028061,0.00012111,2]
[335808225,1724499885858,546.74672462,0.00012111,2]
[335808226,1724499902128,273.37336231,0.00012111,2]
[335808227,1724499914018,1033.59762914,0.00012111,2]
[335808228,1724499924290,405.61368465,0.00012111,2]
[335808229,1724499924725,271.57538297,0.00012111,2]
[335808230,1724499924935,821.17461397,0.00012111,2]
[335808231,1724499934100,273.37336231,0.00012111,2]
[335808232,1724499934131,1655.46213886,0.00012111,2]
[335808233,1724499950026,194.64157804,0.00012111,2]
[335808234,1724499956419,695.14803561,0.00011999,2]
[335808236,1724499988984,230.15361077,0.00011999,2]
[335808237,1724500010308,405.39697964,0.00011999,2]
[335808239,1724500030109,680.31074553,0.00011999,2]
[335808240,1724500036221,-1717.44218391,0.00012516,2]
[335808241,1724500036246,-300.0,0.0001255,2]
[335808242,1724500036275,-2077.34615714,0.00012551,2]
[335808243,1724500041098,-12467.80624835,0.00012551,2]
[335808244,1724500043104,-1090.08470334,0.00012551,2]
[335808246,1724500148603,-300.0,0.00012355,2]
[335808247,1724500148625,-22006.00212483,0.00012356,2]
[335808248,1724500148647,-187.6304328,0.00012551,2]
[335808249,1724500162353,22006.00212483,0.00012163,2]
[335808258,1724500184346,1000.23362312,0.00012551,2]
[335808259,1724500194985,1766.94298382,0.00012551,2]
[335808299,1724500231833,-321.63519805,0.00012782,2]
[335808340,1724500237939,-308.77232842,0.00012779,2]
[335808342,1724500237949,-642.79789908,0.00012782,2]
[335808344,1724500237958,-659.096855,0.00012877,2]
[335808347,1724500237968,-934.26607432,0.00012898,2]
[335808375,1724500238192,-217.44742416,0.00012898,2]
[335808377,1724500238202,-300.0,0.00012899,2]
[335808379,1724500238211,-4293.23293471,0.000129,2]
[335808381,1724500238221,-404.38845476,0.00012934,2]
[335808383,1724500238231,-155.79216523,0.00012934,2]
[335808385,1724500238243,-493.14186708,0.00012971,2]
[335808387,1724500238253,-502.23753504,0.00012971,2]
[335808390,1724500238262,-188.918509,0.00012971,2]
[335808392,1724500238272,-292.70870654,0.00012971,2]
[335808394,1724500238281,-196.82753678,0.00012971,2]
[335808396,1724500238291,-365.55978458,0.00012971,2]
[335808398,1724500238300,-216.36474149,0.00012971,2]
[335808400,1724500238310,-320.29915971,0.00012971,2]
[335808402,1724500238320,-1381.95829376,0.00012971,3]
[335808404,1724500238329,-180.88265675,0.00012989,2]
[335808406,1724500238339,-161.61766636,0.00012989,2]
[335808408,1724500238349,-554.2825588,0.00012989,2]
[335808410,1724500238358,-21.13398637,0.00012989,2]
[335808412,1724500238370,-133.57979314,0.00012989,2]
[335808414,1724500238379,-4000.0,0.00013,2]
[335808416,1724500238388,-288.3725178,0.00013051,2]
[335808418,1724500238398,-500.0,0.00013178,2]
[335808420,1724500238408,-306.0,0.000132,2]
[335808422,1724500238420,-408.9517048,0.000132,2]
[335808424,1724500238429,-207.7300879,0.000132,2]
[335808426,1724500238440,-153.9646538,0.000132,2]
[335808428,1724500238449,-281.07945898,0.00013333,2]
[335808430,1724500238459,-415.3273856,0.00013425,2]
[335808432,1724500238470,-153.0,0.00013425,2]
[335808434,1724500238478,-207.7300879,0.00013425,2]
[335808436,1724500238488,-207.7300879,0.00013425,2]
[335808437,1724500238498,-207.016465,0.00013425,2]
[335808438,1724500238507,-2000.0,0.00013486,2]
[335808439,1724500238517,-298.68651676,0.00013496,2]
[335808440,1724500238526,-150.112233,0.000135,2]
[335808441,1724500238535,-150.112233,0.000135,2]
[335808442,1724500238544,-3502.41841425,0.00013578,2]
[335808443,1724500238553,-168.96894699,0.00013598,2]
[335808444,1724500238564,-2740.17074274,0.00013598,2]
[335808445,1724500238574,-898.81779354,0.00013599,2]
[335808446,1724500238584,-150.112233,0.000136,2]
[335808447,1724500238600,-150.112233,0.000136,2]
[335808448,1724500238610,-150.112233,0.000136,2]
[335808449,1724500238619,-150.112233,0.000136,2]
[335808450,1724500238630,-150.112233,0.000136,2]
[335808451,1724500238640,-4293.23293469,0.00013625,2]
[335808452,1724500238651,-150.0,0.00013629,2]
[335808453,1724500238663,-5720.57521366,0.00013667,2]
[335808454,1724500238673,-500.0,0.00013673,2]
[335808455,1724500238683,-500.0,0.00013673,2]
[335808456,1724500238692,-283.95250902,0.00013673,2]
[335808457,1724500238701,-500.0,0.00013673,2]
[335808458,1724500238711,-600.0,0.00013676,2]
[335808459,1724500238720,-154.79101359,0.00013688,2]
[335808460,1724500238730,-156.07985241,0.00013688,2]
[335808461,1724500238740,-207.26236852,0.00013688,2]
[335808462,1724500238749,-465569.859138,0.00013688,2]
[335808463,1724500238759,-495.34936838,0.00013697,2]
[335808464,1724500238769,-156.87056893,0.00013697,2]
[335808465,1724500238779,-4860.96253024,0.00013697,2]
[335808466,1724500238789,-500.0,0.00013698,2]
[335808467,1724500238799,-365.70010369,0.00013698,2]
[335808468,1724500238810,-188.25562502,0.00013698,2]
[335808469,1724500238820,-1859.46,0.00013698,2]
[335808470,1724500238831,-630.23123774,0.00013698,2]
[335808471,1724500238843,-500.0,0.00013698,2]
[335808472,1724500238855,-995.16,0.00013698,2]
[335808473,1724500238866,-500.0,0.00013698,2]
[335808474,1724500238876,-529.89,0.00013698,2]
[335808475,1724500238885,-500.0,0.00013698,2]
[335808476,1724500238896,-500.0,0.00013698,2]
[335808477,1724500238906,-500.0,0.00013698,2]
[335808478,1724500238916,-516.08,0.00013698,2]
[335808479,1724500238926,-691.11,0.00013698,2]
[335808480,1724500238937,-1161.37,0.00013698,2]
[335808481,1724500238947,-500.0,0.00013698,2]
[335808482,1724500238958,-731.75,0.00013698,2]
[335808483,1724500238969,-500.0,0.00013698,2]
[335808484,1724500238979,-291.86163997,0.00013698,2]
[335808485,1724500238988,-506.58545164,0.00013698,2]
[335808486,1724500238998,-500.0,0.00013698,2]
[335808487,1724500239007,-684.5,0.00013698,2]
[335808488,1724500239017,-642.95,0.00013698,2]
[335808489,1724500239026,-500.0,0.00013698,2]
[335808490,1724500239035,-501.33411364,0.00013698,2]
[335808491,1724500239044,-500.0,0.00013698,2]
[335808492,1724500239053,-500.0,0.00013698,2]
[335808493,1724500239062,-500.0,0.00013698,2]
[335808494,1724500239071,-1389.16,0.00013698,2]
[335808495,1724500239081,-500.0,0.00013698,2]
[335808496,1724500239090,-500.0,0.00013698,2]
[335808497,1724500239099,-500.0,0.00013698,2]
[335808498,1724500239109,-513.24810199,0.00013698,2]
[335808499,1724500239119,-500.0,0.00013698,2]
[335808500,1724500239128,-500.0,0.00013698,2]
[335808501,1724500239138,-500.0,0.00013698,2]
[335808502,1724500239148,-500.0,0.00013698,2]
[335808503,1724500239158,-500.0,0.00013698,2]
[335808504,1724500239167,-500.0,0.00013698,2]
[335808505,1724500239177,-173.76,0.00013698,2]
[335808506,1724500239187,-500.0,0.00013698,2]
[335808507,1724500239196,-500.0,0.00013698,2]
[335808508,1724500239206,-503.31442808,0.00013698,2]
[335808509,1724500239216,-500.0,0.00013698,2]
[335808510,1724500239226,-500.0,0.00013698,2]
[335808511,1724500239235,-500.0,0.00013698,2]
[335808512,1724500239245,-500.0,0.00013698,2]
[335808513,1724500239254,-500.0,0.00013698,2]
[335808514,1724500239263,-500.0,0.00013698,2]
[335808515,1724500239273,-500.0,0.00013698,2]
[335808516,1724500239282,-503.73193649,0.00013698,2]
[335808517,1724500239291,-500.0,0.00013698,2]
[335808518,1724500239301,-500.0,0.00013698,2]
[335808519,1724500239310,-500.0,0.00013698,2]
[335808520,1724500239319,-500.0,0.00013698,2]
[335808521,1724500239330,-500.89536007,0.00013698,2]
[335808522,1724500239339,-500.0,0.00013698,2]
[335808523,1724500239349,-500.0,0.00013698,2]
[335808524,1724500239358,-500.0,0.00013698,2]
[335808525,1724500239367,-500.0,0.00013698,2]
[335808526,1724500239377,-515.18274963,0.00013698,2]
[335808527,1724500239386,-504.04700606,0.00013698,2]
[335808528,1724500239395,-500.0,0.00013698,2]
[335808529,1724500239405,-500.0,0.00013698,2]
[335808530,1724500239414,-501.11184243,0.00013698,2]
[335808531,1724500239424,-500.0,0.00013698,2]
[335808532,1724500239434,-500.0,0.00013698,2]
[335808533,1724500239443,-500.0,0.00013698,2]
[335808534,1724500239453,-500.0,0.00013698,2]
[335808535,1724500239463,-502.23568228,0.00013698,2]
[335808536,1724500239472,-500.0,0.00013698,2]
[335808537,1724500239481,-500.0,0.00013698,2]
[335808538,1724500239490,-500.0,0.00013698,2]
[335808539,1724500239499,-1112.89,0.00013698,2]
[335808540,1724500239509,-500.0,0.00013698,2]
[335808541,1724500239518,-500.0,0.00013698,2]
[335808542,1724500239527,-500.0,0.00013698,2]
[335808543,1724500239537,-500.0,0.00013698,2]
[335808544,1724500239547,-500.0,0.00013698,2]
[335808545,1724500239556,-500.0,0.00013698,2]
[335808546,1724500239567,-500.0,0.00013698,2]
[335808547,1724500239577,-500.0,0.00013698,2]
[335808548,1724500239588,-500.0,0.00013698,2]
[335808549,1724500239601,-500.0,0.00013698,2]
[335808550,1724500239611,-500.0,0.00013698,2]
[335808551,1724500239620,-1186.59,0.00013698,2]
[335808552,1724500239630,-500.0,0.00013698,2]
[335808553,1724500239641,-500.0,0.00013698,2]
[335808554,1724500239650,-500.0,0.00013698,2]
[335808555,1724500239659,-500.0,0.00013698,2]
[335808556,1724500239669,-500.0,0.00013698,2]
[335808557,1724500239679,-564.65068328,0.00013698,2]
[335808558,1724500239689,-648.97,0.00013698,2]
[335808559,1724500239698,-371.64930465,0.00013698,2]
[335808560,1724500239707,-500.0,0.00013698,2]
[335808562,1724500239716,-502.29850537,0.00013698,2]
[335808563,1724500239725,-500.0,0.00013698,2]
[335808564,1724500239734,-500.0,0.00013698,2]
[335808565,1724500239743,-500.0,0.00013698,2]
[335808566,1724500239753,-500.0,0.00013698,2]
[335808567,1724500239762,-500.55269522,0.00013698,2]
[335808569,1724500239771,-500.0,0.00013698,2]
[335808571,1724500239781,-500.0,0.00013698,2]
[335808572,1724500239791,-500.0,0.00013698,2]
[335808573,1724500239800,-500.0,0.00013698,2]
[335808574,1724500239810,-817.47,0.00013698,2]
[335808575,1724500239819,-500.68041564,0.00013698,2]
[335808576,1724500239828,-500.0,0.00013698,2]
[335808577,1724500239838,-500.0,0.00013698,2]
[335808578,1724500239848,-500.0,0.00013698,2]
[335808579,1724500239857,-500.0,0.00013698,2]
[335808580,1724500239867,-500.0,0.00013698,2]
[335808581,1724500239876,-676.05,0.00013698,2]
[335808582,1724500239886,-500.0,0.00013698,2]
[335808583,1724500239896,-500.0,0.00013698,2]
[335808584,1724500239905,-500.0,0.00013698,2]
[335808585,1724500239915,-500.0,0.00013698,2]
[335808587,1724500239923,-500.0,0.00013698,2]
[335808588,1724500239932,-500.0,0.00013698,2]
[335808589,1724500239941,-500.0,0.00013698,2]
[335808590,1724500239950,-500.0,0.00013698,2]
[335808591,1724500239968,-1255.74,0.00013698,2]
[335808592,1724500239979,-500.0,0.00013698,2]
[335808593,1724500239988,-500.0,0.00013698,2]
[335808594,1724500239997,-389.94915928,0.00013698,2]
[335808595,1724500240006,-1387.96,0.00013698,2]
[335808596,1724500240015,-754.9,0.00013698,2]
[335808597,1724500240025,-500.0,0.00013698,2]
[335808598,1724500240034,-500.0,0.00013698,2]
[335808599,1724500240043,-504.7,0.00013698,2]
[335808600,1724500240052,-500.0,0.00013698,2]
[335808601,1724500240062,-500.0,0.00013698,2]
[335808602,1724500240071,-500.0,0.00013698,2]
[335808603,1724500240080,-1111.62,0.00013698,2]
[335808604,1724500240089,-500.0,0.00013698,2]
[335808605,1724500240099,-500.0,0.00013698,2]
[335808606,1724500240110,-1005.55,0.00013698,2]
[335808607,1724500240119,-500.0,0.00013698,2]
[335808608,1724500240130,-500.0,0.00013698,2]
[335808609,1724500240141,-500.0,0.00013698,2]
[335808610,1724500240150,-500.0,0.00013698,2]
[335808611,1724500240159,-556.98,0.00013698,2]
[335808612,1724500240169,-659.53,0.00013698,2]
[335808613,1724500240178,-755.18,0.00013698,2]
[335808614,1724500240189,-712.47,0.00013698,2]
[335808615,1724500240199,-503.17953657,0.00013698,2]
[335808616,1724500240211,-181.06987993,0.00013698,2]
[335808617,1724500240222,-500.0,0.00013698,2]
[335808618,1724500240232,-500.87301071,0.00013698,2]
[335808619,1724500240242,-500.0,0.00013698,2]
[335808620,1724500240254,-1085.61,0.00013698,2]
[335808621,1724500240263,-500.0,0.00013698,2]
[335808622,1724500240274,-500.0,0.00013698,2]
[335808623,1724500240284,-500.0,0.00013698,2]
[335808624,1724500240294,-500.0,0.00013698,2]
[335808625,1724500240304,-500.0,0.00013698,2]
[335808626,1724500240313,-500.0,0.00013698,2]
[335808627,1724500240323,-500.0,0.00013698,2]
[335808628,1724500240332,-501.98071286,0.00013698,2]
[335808629,1724500240343,-500.0,0.00013698,2]
[335808630,1724500240353,-500.0,0.00013698,2]
[335808631,1724500240363,-500.0,0.00013698,2]
[335808632,1724500240373,-388.54454486,0.00013698,2]
[335808633,1724500240382,-500.0,0.00013698,2]
[335808634,1724500240392,-500.0,0.00013698,2]
[335808635,1724500240402,-500.0,0.00013698,2]
[335808636,1724500240413,-500.0,0.00013698,2]
[335808637,1724500240423,-731.75,0.00013698,2]
[335808638,1724500240433,-536.66,0.00013698,2]
[335808639,1724500240442,-500.0,0.00013698,2]
[335808640,1724500240451,-500.0,0.00013698,2]
[335808641,1724500240461,-525.8,0.00013698,2]
[335808642,1724500240471,-500.0,0.00013698,2]
[335808643,1724500240481,-500.0,0.00013698,2]
[335808644,1724500240490,-500.0,0.00013698,2]
[335808645,1724500240499,-500.0,0.00013698,2]
[335808646,1724500240508,-1618.43,0.00013698,2]
[335808647,1724500240518,-788.39,0.00013698,2]
[335808648,1724500240529,-735.26,0.00013698,2]
[335808649,1724500240540,-2484.29,0.00013698,2]
[335808650,1724500240551,-500.0,0.00013698,2]
[335808651,1724500240561,-500.0,0.00013698,2]
[335808652,1724500240571,-751.87,0.00013698,2]
[335808653,1724500240580,-500.0,0.00013698,2]
[335808654,1724500240591,-500.0,0.00013698,2]
[335808655,1724500240601,-500.0,0.00013698,2]
[335808656,1724500240611,-500.0,0.00013698,2]
[335808657,1724500240620,-500.0,0.00013698,2]
[335808658,1724500240631,-926.7,0.00013698,2]
[335808659,1724500240640,-571.02,0.00013698,2]
[335808660,1724500240650,-500.0,0.00013698,2]
[335808661,1724500240662,-591.52,0.00013698,2]
[335808662,1724500240671,-588.56,0.00013698,2]
[335808663,1724500240680,-866.78,0.00013698,2]
[335808664,1724500240689,-500.0,0.00013698,2]
[335808665,1724500240698,-820.27,0.00013698,2]
[335808666,1724500240707,-500.0,0.00013698,2]
[335808667,1724500240716,-536.7811588,0.00013698,2]
[335808668,1724500240725,-500.0,0.00013698,2]
[335808669,1724500240735,-500.0,0.00013698,2]
[335808670,1724500240744,-500.0,0.00013698,2]
[335808671,1724500240754,-719.04,0.00013698,2]
[335808672,1724500240763,-566.98,0.00013698,2]
[335808673,1724500240773,-451.02923329,0.00013698,2]
[335808674,1724500240784,-500.0,0.00013698,2]
[335808675,1724500240794,-500.0,0.00013698,2]
[335808676,1724500240805,-285.92282374,0.00013698,2]
[335808677,1724500240816,-2230.8,0.00013698,2]
[335808678,1724500240825,-1049.49,0.00013698,2]
[335808679,1724500240835,-500.0,0.00013698,2]
[335808680,1724500240845,-671.5,0.00013698,2]
[335808681,1724500240855,-500.0,0.00013698,2]
[335808682,1724500240864,-500.0,0.00013698,2]
[335808683,1724500240874,-500.0,0.00013698,2]
[335808684,1724500240883,-500.0,0.00013698,2]
[335808685,1724500240894,-601.53830752,0.00013698,2]
[335808686,1724500240904,-500.0,0.00013698,2]
[335808687,1724500240915,-500.0,0.00013698,2]
[335808688,1724500240925,-317.59539575,0.00013698,2]
[335808689,1724500240935,-500.0,0.00013698,2]
[335808690,1724500240945,-500.0,0.00013698,2]
[335808691,1724500240954,-500.0,0.00013698,2]
[335808692,1724500240966,-500.0,0.00013698,2]
[335808693,1724500240976,-500.0,0.00013698,2]
[335808694,1724500240985,-648.56,0.00013698,2]
[335808695,1724500240994,-500.0,0.00013698,2]
[335808696,1724500241003,-500.0,0.00013698,2]
[335808697,1724500241013,-500.0,0.00013698,2]
[335808698,1724500241022,-626.76,0.00013698,2]
[335808699,1724500241031,-857.18,0.00013698,2]
[335808700,1724500241040,-1200.97,0.00013698,2]
[335808701,1724500241050,-1919.7,0.00013698,2]
[335808702,1724500241059,-500.0,0.00013698,2]
[335808703,1724500241069,-500.0,0.00013698,2]
[335808704,1724500241080,-1537.29,0.00013698,2]
[335808705,1724500241091,-500.0,0.00013698,2]
[335808706,1724500241102,-500.0,0.00013698,2]
[335808707,1724500241114,-2518.13,0.00013698,2]
[335808708,1724500241124,-500.0,0.00013698,2]
[335808709,1724500241134,-500.0,0.00013698,2]
[335808710,1724500241145,-901.63,0.00013698,2]
[335808711,1724500241155,-624.89,0.00013698,2]
[335808712,1724500241166,-500.0,0.00013698,2]
[335808713,1724500241175,-643.50200613,0.00013698,2]
[335808714,1724500241186,-500.0,0.00013698,2]
[335808715,1724500241196,-500.0,0.00013698,2]
[335808716,1724500241205,-500.0,0.00013698,2]
[335808717,1724500241215,-500.0,0.00013698,2]
[335808718,1724500241224,-500.0,0.00013698,2]
[335808719,1724500241234,-1192.65,0.00013698,2]
[335808720,1724500241243,-2199.63,0.00013698,2]
[335808721,1724500241253,-575.68528405,0.00013698,2]
[335808722,1724500241262,-500.0,0.00013698,2]
[335808723,1724500241272,-593.57,0.00013698,2]
[335808724,1724500241281,-1091.13,0.00013698,2]
[335808725,1724500241291,-500.0,0.00013698,2]
[335808726,1724500241301,-500.0,0.00013698,2]
[335808727,1724500241311,-500.0,0.00013698,2]
[335808728,1724500241320,-1853.55,0.00013698,2]
[335808729,1724500241330,-793.86,0.00013698,2]
[335808730,1724500241340,-500.0,0.00013698,2]
[335808731,1724500241350,-500.0,0.00013698,2]
[335808732,1724500241359,-500.0,0.00013698,2]
[335808733,1724500241369,-500.0,0.00013698,2]
[335808734,1724500241378,-500.0,0.00013698,2]
[335808735,1724500241388,-590.32,0.00013698,2]
[335808736,1724500241398,-687.41,0.00013698,2]
[335808737,1724500241408,-953.91,0.00013698,2]
[335808738,1724500241417,-500.0,0.00013698,2]
[335808739,1724500241427,-500.0,0.00013698,2]
[335808740,1724500241436,-1063.08,0.00013698,2]
[335808741,1724500241445,-1360.01,0.00013698,2]
[335808742,1724500241455,-500.0,0.00013698,2]
[335808743,1724500241465,-500.0,0.00013698,2]
[335808744,1724500241474,-808.77,0.00013698,2]
[335808745,1724500241483,-500.0,0.00013698,2]
[335808746,1724500241492,-500.0,0.00013698,2]
[335808747,1724500241503,-500.0,0.00013698,2]
[335808748,1724500241512,-1316.64,0.00013698,2]
[335808749,1724500241522,-500.56863178,0.00013698,2]
[335808750,1724500241531,-770.25,0.00013698,2]
[335808751,1724500241542,-500.0,0.00013698,2]
[335808752,1724500241552,-500.0,0.00013698,2]
[335808753,1724500241561,-500.0,0.00013698,2]
[335808754,1724500241571,-799.87,0.00013698,2]
[335808755,1724500241581,-500.0,0.00013698,2]
[335808756,1724500241594,-500.0,0.00013698,2]
[335808757,1724500241603,-1326.53,0.00013698,2]
[335808758,1724500241614,-500.0,0.00013698,2]
[335808759,1724500241624,-500.0,0.00013698,2]
[335808760,1724500241634,-695.32,0.00013698,2]
[335808761,1724500241644,-500.0,0.00013698,2]
[335808762,1724500241654,-500.0,0.00013698,2]
[335808763,1724500241664,-500.0,0.00013698,2]
[335808764,1724500241675,-500.0,0.00013698,2]
[335808765,1724500241684,-500.0,0.00013698,2]
[335808766,1724500241694,-510.53305999,0.00013698,2]
[335808767,1724500241703,-500.0,0.00013698,2]
[335808768,1724500241713,-749.42,0.00013698,2]
[335808769,1724500241724,-500.0,0.00013698,2]
[335808770,1724500241735,-500.0,0.00013698,2]
[335808771,1724500241745,-500.0,0.00013698,2]
[335808772,1724500241755,-1442.43,0.00013698,2]
[335808773,1724500241765,-500.0,0.00013698,2]
[335808774,1724500241775,-372.73170538,0.00013698,2]
[335808775,1724500241784,-500.0,0.00013698,2]
[335808776,1724500241794,-1269.65,0.00013698,2]
[335808777,1724500241803,-1067.99,0.00013698,2]
[335808778,1724500241813,-625.59,0.00013698,2]
[335808779,1724500241822,-500.0,0.00013698,2]
[335808780,1724500241832,-500.0,0.00013698,2]
[335808781,1724500241841,-500.0,0.00013698,2]
[335808782,1724500241851,-500.0,0.00013698,2]
[335808783,1724500241861,-500.0,0.00013698,2]
[335808784,1724500241871,-500.0,0.00013698,2]
[335808785,1724500241880,-500.0,0.00013698,2]
[335808786,1724500241891,-500.0,0.00013698,2]
[335808787,1724500241900,-500.0,0.00013698,2]
[335808788,1724500241910,-500.0,0.00013698,2]
[335808789,1724500241919,-1172.23,0.00013698,2]
[335808790,1724500241928,-669.58,0.00013698,2]
[335808791,1724500241938,-552.57,0.00013698,2]
[335808792,1724500241947,-500.0,0.00013698,2]
[335808793,1724500241957,-500.0,0.00013698,2]
[335808794,1724500241966,-500.0,0.00013698,2]
[335808795,1724500241976,-500.0,0.00013698,2]
[335808796,1724500241985,-588.08,0.00013698,2]
[335808797,1724500241994,-500.0,0.00013698,2]
[335808798,1724500242003,-500.0,0.00013698,2]
[335808799,1724500242013,-1898.67,0.00013698,2]
[335808800,1724500242194,-500.0,0.00013698,2]
[335808801,1724500242205,-500.0,0.00013698,2]
[335808802,1724500242215,-500.0,0.00013698,2]
[335808803,1724500242224,-587.56,0.00013698,2]
[335808804,1724500242234,-500.0,0.00013698,2]
[335808805,1724500242244,-500.0,0.00013698,2]
[335808806,1724500242254,-500.0,0.00013698,2]
[335808807,1724500242265,-500.0,0.00013698,2]
[335808808,1724500242274,-500.0,0.00013698,2]
[335808809,1724500242283,-500.0,0.00013698,2]
[335808810,1724500242292,-516.55611504,0.00013698,2]
[335808811,1724500242302,-665.43,0.00013698,2]
[335808812,1724500242311,-648.73,0.00013698,2]
[335808813,1724500242321,-500.0,0.00013698,2]
[335808814,1724500242330,-500.0,0.00013698,2]
[335808815,1724500242339,-500.0,0.00013698,2]
[335808816,1724500242348,-300.12094391,0.00013698,2]
[335808837,1724500242964,-199.87905609,0.00013698,2]
[335808838,1724500242974,-500.0,0.00013698,2]
[335808839,1724500242984,-500.61120877,0.00013698,2]
[335808840,1724500242993,-556.72,0.00013698,2]
[335808841,1724500243002,-690.45,0.00013698,2]
[335808843,1724500243012,-630.44304182,0.00013698,2]
[335808844,1724500243021,-748.52,0.00013698,2]
[335808845,1724500243030,-500.0,0.00013698,2]
[335808846,1724500243039,-500.0,0.00013698,2]
[335808847,1724500243049,-500.0,0.00013698,2]
[335808848,1724500243058,-500.0,0.00013698,2]
[335808849,1724500243068,-500.0,0.00013698,2]
[335808850,1724500243077,-824.7,0.00013698,2]
[335808851,1724500243086,-540.16,0.00013698,2]
[335808852,1724500243095,-478.2739158,0.00013698,2]
[335808853,1724500243104,-1171.72,0.00013698,2]
[335808854,1724500243113,-500.0,0.00013698,2]
[335808855,1724500243122,-500.0,0.00013698,2]
[335808856,1724500243132,-500.0,0.00013698,2]
[335808857,1724500243141,-500.0,0.00013698,2]
[335808858,1724500243150,-500.0,0.00013698,2]
[335808859,1724500243159,-193.55873938,0.00013698,2]
[335808860,1724500243469,-266.61308274,0.00012886,2]
[335808861,1724500243480,-306.44126062,0.00013698,2]